fUST/lending_fUST_20250623
["ID","MTS","AMOUNT","RATE_DAILY","PERIOD"]
[367177184,1750691434026,-500.0,0.00022805,2]
[367177185,1750691434036,-512.34243807,0.00022805,2]
[367177186,1750691434045,-506.37154004,0.00022805,2]
[367177187,1750691434055,-151.0,0.00022856,2]
[367177188,1750691434065,-205.81083176,0.00022856,2]
[367177189,1750691434075,-500.0,0.00022856,2]
[367177190,1750691434086,-151.0,0.00022856,2]
[367177191,1750691434095,-352.66742282,0.00022873,2]
[367177192,1750691434105,-500.0,0.00022873,2]
[367177193,1750691434114,-500.0,0.00022873,2]
[367177194,1750691434124,-500.0,0.00022873,2]
[367177195,1750691434134,-500.0,0.00022873,2]
[367177196,1750691434143,-500.0,0.00022873,2]
[367177197,1750691434153,-500.0,0.00022873,2]
[367177198,1750691434163,-500.0,0.00022873,2]
[367177199,1750691434173,-500.0,0.00022873,2]
[367177200,1750691434182,-749.43234091,0.00022873,2]
[367177201,1750691434192,-1512.85321628,0.0002288,2]
[367177202,1750691434202,-151.0,0.00022883,2]
[367177203,1750691434212,-500.0,0.00022883,2]
[367177204,1750691434222,-151.0,0.00022883,2]
[367177205,1750691434232,-500.0,0.00022886,2]
[367177206,1750691434241,-591.34040337,0.00022886,2]
[367177207,1750691434251,-500.0,0.00022886,2]
[367177208,1750691434261,-500.0,0.00022886,2]
[367177209,1750691434272,-500.0,0.00022886,2]
[367177210,1750691434282,-804.41,0.0002289,3]
[367177211,1750691434292,-402.2,0.0002289,3]
[367177212,1750691434302,-201.1,0.0002289,3]
[367177213,1750691434312,-603.34,0.0002289,3]
[367177214,1750691434322,-664.78,0.0002289,10]
[367177215,1750691434333,-151.0,0.00022898,5]
[367177216,1750691434343,-500.0,0.00022899,2]
[367177217,1750691434354,-500.0,0.000229,5]
[367177218,1750691434364,-3032.7,0.000229,7]
[367177219,1750691434374,-436.11178674,0.000229,2]
[367177224,1750691438279,-500.0,0.00022733,2]
[367177225,1750691438290,-500.0,0.00022733,2]
[367177226,1750691438300,-500.0,0.00022733,2]
[367177227,1750691438316,-500.0,0.00022733,2]
[367177228,1750691438326,-500.0,0.00022733,2]
[367177229,1750691438338,-577.60410266,0.00022733,2]
[367177230,1750691438349,-500.0,0.00022733,2]
[367177231,1750691438359,-500.0,0.00022733,2]
[367177232,1750691438368,-500.0,0.00022733,2]
[367177233,1750691438379,-500.0,0.00022733,2]
[367177234,1750691438389,-500.0,0.00022733,2]
[367177235,1750691438399,-2200.0,0.00022735,2]
[367177236,1750691438408,-33248.17695025,0.000229,2]
[367177237,1750691438420,-695.24,0.000229,2]
[367177238,1750691438431,-9309.91579587,0.000229,2]
[367177239,1750691438443,-4466.2717165,0.000229,2]
[367177240,1750691438458,-322.9772548,0.000229,2]
[367177256,1750691443515,-13913.50797111,0.000229,2]
[367177275,1750691446755,-17071.49852473,0.000229,2]
[367177276,1750691446772,-7081.32,0.000229,7]
[367177277,1750691446782,-151.0,0.000229,5]
[367177278,1750691446791,-151.0,0.000229,5]
[367177279,1750691446800,-151.0,0.000229,5]
[367177280,1750691446809,-846.53928378,0.000229,7]
[367177281,1750691446819,-213.63163053,0.000229,7]
[367177282,1750691446829,-500.0,0.000229,2]
[367177283,1750691446838,-749.43234091,0.000229,2]
[367177284,1750691446848,-2200.0,0.000229,2]
[367177285,1750691446858,-151.0,0.00022911,2]
[367177286,1750691446867,-500.0,0.00022911,2]
[367177287,1750691446877,-151.0,0.00022911,2]
[367177288,1750691446887,-151.0,0.00022927,5]
[367177289,1750691446896,-222.88439245,0.00022927,5]
[367177290,1750691446905,-173.61852583,0.00022927,5]
[367177291,1750691446915,-553.98,0.00022938,10]
[367177292,1750691446924,-151.0,0.00022938,2]
[367177293,1750691446933,-500.0,0.00022938,2]
[367177294,1750691446942,-220.1544562,0.00022938,2]
[367177295,1750691446952,-8000.0,0.00022948,2]
[367177296,1750691446962,-245.0,0.00022955,5]
[367177297,1750691446972,-245.0,0.00022966,2]
[367177298,1750691446981,-500.0,0.00022966,2]
[367177299,1750691446992,-500.0,0.00022993,2]
[367177300,1750691447002,-151.0,0.00022993,5]
[367177301,1750691447012,-168.0,0.00022996,2]
[367177302,1750691447021,-4418.15170806,0.00023,7]
[367177303,1750691447030,-152.0,0.00023,2]
[367177304,1750691447040,-1000.0,0.00023,3]
[367177305,1750691447049,-160.0,0.00023,3]
[367177306,1750691447058,-330.25263294,0.00023,2]
[367177307,1750691447068,-160.0,0.00023,3]
[367177308,1750691447077,-2000.0,0.00023,14]
[367177309,1750691447087,-2000.0,0.00023,14]
[367177310,1750691447097,-2000.0,0.00023,14]
[367177311,1750691447107,-1356.0,0.00023,14]
[367177312,1750691447116,-5000.0,0.00023,2]
[367177313,1750691447126,-1173.556464,0.00023,2]
[367177314,1750691447136,-500.0,0.0002302,2]
[367177315,1750691447145,-421.08428976,0.00023048,2]
[367177316,1750691447155,-20000.0,0.00023084,3]
[367177317,1750691447164,-230.18214666,0.00023084,3]
[367177318,1750691447174,-160.0,0.00023084,3]
[367177319,1750691447184,-160.0,0.00023084,3]
[367177320,1750691447193,-836.70095952,0.00023084,3]
[367177321,1750691447203,-5996.96325077,0.00023084,3]
[367177322,1750691447212,-160.0,0.00023084,3]
[367177323,1750691447221,-846.53928378,0.00023084,3]
[367177324,1750691447231,-425.08510397,0.00023084,3]
[367177325,1750691447240,-213.63163053,0.00023084,3]
[367177326,1750691447250,-160.0,0.00023084,3]
[367177327,1750691447259,-168.0,0.00023087,2]
[367177328,1750691447269,-151.0,0.00023089,5]
[367177329,1750691447278,-500.0,0.000231,2]
[367177330,1750691447287,-420.0,0.00023121,2]
[367177331,1750691447296,-20000.0,0.00023127,3]
[367177332,1750691447305,-230.18214666,0.00023127,3]
[367177333,1750691447315,-160.0,0.00023127,3]
[367177334,1750691447324,-836.70095952,0.00023127,3]
[367177335,1750691447334,-798.81942226,0.00023127,3]
[367177336,1750691447347,-47.71986152,0.00023127,3]
[367177337,1750691447356,-425.08510397,0.00023127,3]
[367177338,1750691447366,-213.63163053,0.00023127,3]
[367177339,1750691447375,-160.0,0.00023127,3]
[367177340,1750691447385,-1000.0,0.00023154,2]
[367177341,1750691447394,-1000.0,0.00023154,2]
[367177342,1750691447403,-1000.0,0.00023154,2]
[367177343,1750691447413,-1000.0,0.00023242,2]
[367177344,1750691447422,-500.0,0.00023277,8]
[367177345,1750691447432,-160.0,0.0002328,3]
[367177346,1750691447441,-361.27460958,0.00023283,2]
[367177347,1750691447453,-638.72539042,0.00023283,2]
[367177348,1750691447466,-1000.0,0.00023283,2]
[367177349,1750691447476,-362.62126205,0.00023283,2]
[367177350,1750691447485,-211.78202519,0.00023284,2]
[367177351,1750691447495,-1000.0,0.00023284,2]
[367177352,1750691447504,-151.0,0.00023288,2]
[367177353,1750691447514,-310.23,0.000233,3]
[367177354,1750691447523,-500.0,0.000233,3]
[367177355,1750691447532,-151.0,0.00023315,2]
[367177356,1750691447541,-217.44956735,0.00023343,2]
[367177357,1750691447551,-195.03929553,0.00023353,2]
[367177358,1750691447560,-1000.0,0.00023353,2]
[367177359,1750691447569,-168.0,0.00023413,2]
[367177360,1750691447578,-1000.0,0.00023421,2]
[367177361,1750691447587,-1000.0,0.00023421,2]
[367177362,1750691447598,-1000.0,0.00023421,2]
[367177363,1750691447608,-698.49340101,0.00023421,2]
[367177364,1750691447617,-1005.8764289,0.00023421,2]
[367177365,1750691447626,-215.0738,0.00023425,2]
[367177366,1750691447638,-506.31857721,0.00023434,2]
[367177367,1750691447647,-478.21155964,0.00023434,2]
[367177368,1750691447671,-521.78844036,0.00023434,2]
[367177369,1750691447681,-4.47661545,0.00023434,2]
[367177370,1750691483426,424.7,0.000246,120]
[367177372,1750691503162,150.0,0.00022121,30]
[367177373,1750691508438,161.630246,0.00013699,2]
[367177374,1750691577480,150.0,0.00021793,30]
[367177375,1750691577815,150.0,0.00023774,30]
[367177376,1750691651559,150.0,0.00021785,30]
[367177378,1750691941298,-274.732952,0.00021114,2]
[367177379,1750691941320,-420.0,0.00021262,2]
[367177380,1750691941340,-1000.0,0.00021417,2]
[367177381,1750691941360,-1000.0,0.00021417,2]
[367177382,1750691941380,-1000.0,0.00021417,2]
[367177383,1750691941399,-1000.0,0.00021453,2]
[367177384,1750691941421,-420.0,0.00021453,2]
[367177385,1750691941442,-1000.0,0.00021494,2]
[367177386,1750691941463,-420.0,0.00021494,2]
[367177387,1750691941484,-420.0,0.00021762,2]
[367177388,1750691941503,-151.0,0.00022059,5]
[367177389,1750691941523,-1000.0,0.00022069,2]
[367177390,1750691941544,-420.0,0.00022072,2]
[367177391,1750691941564,-300.0,0.00022091,2]
[367177392,1750691941586,-300.0,0.00022091,2]
[367177393,1750691941606,-161.193,0.00022092,2]
[367177394,1750691941627,-269.074048,0.00022092,2]
[367177401,1750692426121,-150.0,0.00019991,2]
[367177402,1750692426144,-300.0,0.00020816,2]
[367177403,1750692426167,-4098.84318624,0.00020817,2]
[367177404,1750692443088,-901.15681376,0.00020817,2]
[367177405,1750692443109,-2385.6764149,0.00020817,2]
[367177406,1750692443132,-207.4,0.0002208,2]
[367177407,1750692443153,-300.0,0.00022091,2]
[367177408,1750692443175,-300.0,0.00022092,2]
[367177409,1750692443199,-150.0,0.00022092,2]
[367177410,1750692443224,-1200.0,0.00022092,2]
[367177411,1750692443246,-836.70095952,0.00022093,2]
[367177412,1750692443267,-213.63163053,0.00022093,2]
[367177413,1750692443289,-17.48796633,0.00022093,2]
[367177414,1750692447103,-425.08510397,0.00022093,2]
[367177415,1750692447128,-230.18214666,0.00022093,2]
[367177416,1750692447151,-8426.75385657,0.00022093,2]
[367177438,1750692509688,-150.0,0.00019993,2]
[367177439,1750692509713,-8.47497961,0.0002,2]
[367177440,1750692518794,-192.90798617,0.000195,2]
[367177445,1750692552312,-1483.54278816,0.000195,2]
[367177446,1750692553115,-154.78209141,0.000195,2]
[367177447,1750692564090,-168.77050936,0.000195,2]
[367177448,1750692564112,-300.0,0.00019999,2]
[367177449,1750692564134,-372.58405531,0.0002,2]
[367177450,1750692564154,-4543.34108107,0.0002,2]
[367177487,1750692632485,-518.3,0.0002,2]
[367177488,1750692632496,-646.9835407,0.0002,2]
[367177489,1750692632506,-164.32894666,0.00021261,2]
[367177490,1750692632518,-835.67105334,0.00021261,2]
[367177491,1750692632528,-192.517962,0.00021278,2]
[367177492,1750692632537,-1321.0,0.00021872,2]
[367177493,1750692632546,-1000.0,0.00022068,2]
[367177494,1750692632555,-207.4,0.0002208,2]
[367177495,1750692632564,-1200.0,0.00022092,2]
[367177496,1750692632574,-300.0,0.00022092,2]
[367177497,1750692632583,-300.0,0.00022092,2]
[367177498,1750692632592,-160.0,0.00022093,2]
[367177500,1750692632603,-16473.24614343,0.00022093,2]
[367177502,1750692632612,-836.70095952,0.00022107,2]
[367177505,1750692632621,-213.63163053,0.00022107,2]
[367177506,1750692632631,-425.08510397,0.00022107,2]
[367177507,1750692632640,-230.18214666,0.00022107,2]
[367177508,1750692632649,-500.0,0.000223,2]
[367177509,1750692632659,-500.0,0.000223,2]
[367177510,1750692632669,-35.92181421,0.000223,2]
[367177511,1750692632697,-464.07818579,0.000223,2]
[367177512,1750692632707,-500.0,0.000223,2]
[367177513,1750692632716,-500.0,0.000223,2]
[367177514,1750692632726,-500.0,0.000223,2]
[367177515,1750692632736,-750.32770185,0.00022386,2]
[367177516,1750692632745,-1275.49,0.00022399,3]
[367177517,1750692632754,-60.04232878,0.00022486,2]
[367177518,1750692632765,-371.44745241,0.00022486,2]
[367177519,1750692632775,-1275.49,0.00022499,2]
[367177520,1750692632784,-420.0,0.00022574,2]
[367177521,1750692632794,-173.48221242,0.00022588,2]
[367177523,1750692638404,-192.90798617,0.00022362,2]
[367177524,1750692638414,-322.09201383,0.00022588,2]
[367177525,1750692638470,-83.90798617,0.00022588,2]
[367177526,1750692638481,-406.0,0.00022588,2]
[367177527,1750692638492,-965.0,0.00022588,2]
[367177528,1750692638503,-1275.49,0.00022599,5]
[367177529,1750692638515,-351.70149214,0.00022614,2]
[367177530,1750692638526,-500.0,0.00022663,2]
[367177531,1750692638537,-419.94662959,0.00022663,2]
[367177532,1750692638547,-500.0,0.00022663,2]
[367177533,1750692638557,-500.0,0.00022663,2]
[367177534,1750692638568,-1275.49,0.00022699,5]
[367177535,1750692638578,-420.0,0.00022701,2]
[367177536,1750692638588,-846.53928378,0.00022727,2]
[367177537,1750692638598,-4094.88376449,0.00022727,2]
[367177538,1750692638611,-1777.60580697,0.00022727,2]
[367177539,1750692638706,-1182.03428246,0.00022727,2]
[367177540,1750692640654,-599.99642315,0.00021709,2]
[367177576,1750692643549,-2181.5266109,0.00021709,2]
[367177688,1750692646898,-422.748628,0.00021709,2]
[367177689,1750692646909,-352.156064,0.00021709,2]
[367177715,1750692726435,161.339924,0.00013699,2]
[367177716,1750692747072,-1589.0,0.00026509,3]
[367177717,1750692747131,-1778.71794022,0.00026509,3]
[367177718,1750692747195,-4895.215013,0.00026509,5]
[367177719,1750692747254,-6396.0,0.00026509,5]
[367177720,1750692747313,-260.0,0.00026509,3]
[367177721,1750692747372,-10157.95,0.00026509,7]
[367177722,1750692747433,-150.0,0.00026509,120]
[367177723,1750692747490,-2000.0,0.00026509,30]
[367177724,1750692747549,-2000.0,0.00026509,30]
[367177725,1750692747605,-2000.0,0.00026509,30]
[367177726,1750692747661,-2000.0,0.00026509,30]
[367177727,1750692747715,-2000.0,0.00026509,30]
[367177728,1750692747771,-2000.0,0.00026509,30]
[367177729,1750692747824,-2000.0,0.00026509,30]
[367177730,1750692747876,-2000.0,0.00026509,30]
[367177731,1750692747929,-2000.0,0.00026509,30]
[367177732,1750692747982,-2000.0,0.00026509,30]
[367177733,1750692748037,-500.0,0.00026509,10]
[367177734,1750692748092,-500.0,0.00026509,10]
[367177735,1750692748146,-500.0,0.00026509,10]
[367177736,1750692748200,-500.0,0.00026509,10]
[367177737,1750692748254,-445.01116852,0.00026509,10]
[367177738,1750692748316,-500.0,0.00026509,10]
[367177739,1750692748369,-283656.24653099,0.00026509,120]
[367177740,1750692748431,-502.96349952,0.00026509,7]
[367177741,1750692748488,-449.5,0.00026509,30]
[367177742,1750692748546,-2000.0,0.00026509,30]
[367177743,1750692748605,-163.4741394,0.00026509,30]
[367177744,1750692748661,-222.96153981,0.00026509,15]
[367177745,1750692748716,-747.07052356,0.00026509,32]
[367177746,1750692748771,-237.90759876,0.00026509,10]
[367177747,1750692748830,-192.40970141,0.00026509,12]
[367177748,1750692748886,-1083.84035354,0.00026509,10]
[367177749,1750692748940,-168.66091166,0.00026509,30]
[367177750,1750692748997,-150.05832723,0.00026509,120]
[367177751,1750692749050,-200.0,0.00026509,10]
[367177752,1750692749104,-498.0,0.00026509,7]
[367177753,1750692749158,-1603.16676506,0.00026509,14]
[367177754,1750692749213,-200.00848015,0.00026509,30]
[367177755,1750692749267,-1524.28853885,0.00026509,14]
[367177756,1750692749320,-156.50205717,0.00026509,120]
[367177757,1750692749378,-153.02813605,0.00026509,7]
[367177758,1750692749432,-608.90391407,0.00026509,15]
[367177759,1750692749489,-164.01603827,0.00026509,120]
[367177760,1750692749545,-1503.94834862,0.00026509,15]
[367177761,1750692749602,-2000.0,0.00026509,30]
[367177762,1750692749657,-519.299999,0.00026509,30]
[367177763,1750692749715,-519.299999,0.00026509,30]
[367177764,1750692749773,-163896.56032585,0.00026509,20]
[367177765,1750692749829,-5000.0,0.00026509,5]
[367177766,1750692749885,-669.7394595,0.00026509,120]
[367177767,1750692749943,-250.0,0.00026509,10]
[367177768,1750692750003,-250.0,0.00026509,10]
[367177769,1750692750060,-250.0,0.00026509,10]
[367177770,1750692750118,-493.578406,0.00026509,10]
[367177771,1750692751630,1439.648049,0.00026509,30]
[367177773,1750692762609,-2582.09,0.0002279,3]
[367177774,1750692762683,-1291.04,0.0002279,3]
[367177775,1750692762745,-645.52,0.0002279,3]
[367177776,1750692762804,-322.76,0.0002279,3]
[367177777,1750692762862,-161.38,0.0002279,3]
[367177778,1750692762921,-484.19,0.0002279,3]
[367177779,1750692762982,-152.35,0.0002279,3]
[367177780,1750692763046,-457.05,0.0002279,3]
[367177781,1750692763104,-310.26,0.0002279,10]
[367177782,1750692763164,-484.42,0.0002279,10]
[367177783,1750692763224,-501.01,0.00022799,7]
[367177784,1750692763288,-151.0,0.00022815,5]
[367177785,1750692763351,-200.0,0.0002286,6]
[367177786,1750692763407,-1275.49,0.00022899,4]
[367177787,1750692763469,-151.0,0.00022939,5]
[367177788,1750692763524,-305.226958,0.00022965,4]
[367177789,1750692763583,-1275.49,0.00022999,3]
[367177790,1750692763639,-151.0,0.00023063,5]
[367177791,1750692763693,-151.0,0.00023187,5]
[367177792,1750692763750,-1275.49,0.00023199,6]
[367177793,1750692763808,-1275.49,0.00023299,6]
[367177794,1750692763865,-151.0,0.0002331,5]
[367177795,1750692763926,-151.0,0.00023434,5]
[367177796,1750692763985,-1275.49,0.00023499,6]
[367177797,1750692764041,-2000.0,0.000235,4]
[367177798,1750692764100,-7192.67838365,0.000235,7]
[367177799,1750692764156,-161.46078545,0.000235,7]
[367177800,1750692764222,-1275.49,0.00023599,7]
[367177801,1750692764287,-151.0,0.000236,9]
[367177802,1750692764351,-151.0,0.000236,7]
[367177803,1750692764413,-151.0,0.000236,7]
[367177804,1750692764473,-151.0,0.000236,7]
[367177805,1750692764536,-151.0,0.000236,7]
[367177806,1750692764608,-151.0,0.000236,7]
[367177807,1750692764668,-151.0,0.000236,7]
[367177808,1750692764726,-151.0,0.000236,7]
[367177809,1750692764782,-1275.49,0.00023699,3]
[367177810,1750692764841,-151.0,0.000237,6]
[367177811,1750692764901,-247.31271463,0.000237,4]
[367177812,1750692764959,-247.31271463,0.000237,4]
[367177813,1750692765017,-247.31271463,0.000237,4]
[367177814,1750692765088,-247.31271463,0.000237,4]
[367177815,1750692765164,-247.31271463,0.000237,4]
[367177816,1750692765230,-247.31271463,0.000237,4]
[367177817,1750692765296,-247.31271463,0.000237,4]
[367177818,1750692765376,-247.31271463,0.000237,4]
[367177819,1750692765447,-247.31271463,0.000237,4]
[367177820,1750692765520,-247.31271463,0.000237,4]
[367177821,1750692765591,-247.31271463,0.000237,4]
[367177822,1750692765656,-247.31271463,0.000237,4]
[367177823,1750692765719,-247.31271463,0.000237,4]
[367177824,1750692765790,-247.31271463,0.000237,4]
[367177825,1750692765860,-247.31271463,0.000237,4]
[367177826,1750692765929,-247.31271463,0.000237,4]
[367177827,1750692765989,-247.31271463,0.000237,4]
[367177828,1750692766051,-247.31271463,0.000237,4]
[367177829,1750692766116,-247.31271463,0.000237,4]
[367177830,1750692766178,-247.31,0.000237,4]
[367177831,1750692766239,-577.0630008,0.000237,4]
[367177832,1750692766310,-577.0630008,0.000237,4]
[367177833,1750692766389,-577.0630008,0.000237,4]
[367177834,1750692766473,-577.0630008,0.000237,4]
[367177835,1750692766555,-577.0630008,0.000237,4]
[367177836,1750692766625,-577.0630008,0.000237,4]
[367177837,1750692766691,-577.0630008,0.000237,4]
[367177838,1750692766754,-577.0630008,0.000237,4]
[367177839,1750692766818,-577.0630008,0.000237,4]
[367177840,1750692766878,-577.0630008,0.000237,4]
[367177841,1750692766943,-577.0630008,0.000237,4]
[367177842,1750692767010,-577.0630008,0.000237,4]
[367177843,1750692767072,-577.0630008,0.000237,4]
[367177844,1750692767139,-577.0630008,0.000237,4]
[367177845,1750692767201,-577.0630008,0.000237,4]
[367177846,1750692767263,-577.0630008,0.000237,4]
[367177847,1750692767326,-577.0630008,0.000237,4]
[367177848,1750692767387,-577.0630008,0.000237,4]
[367177849,1750692767449,-287.74151009,0.000237,4]
[367177850,1750692767514,-287.74151009,0.000237,4]
[367177851,1750692767587,-287.74151009,0.000237,4]
[367177852,1750692767661,-287.74151009,0.000237,4]
[367177853,1750692767724,-287.74151009,0.000237,4]
[367177854,1750692767789,-287.74151009,0.000237,4]
[367177855,1750692767855,-287.74151009,0.000237,4]
[367177856,1750692767918,-287.74151009,0.000237,4]
[367177857,1750692767984,-287.74151009,0.000237,4]
[367177858,1750692768047,-287.74151009,0.000237,4]
[367177859,1750692768111,-287.74151009,0.000237,4]
[367177860,1750692768171,-287.74151009,0.000237,4]
[367177861,1750692768232,-287.74151009,0.000237,4]
[367177862,1750692768297,-287.74151009,0.000237,4]
[367177863,1750692768366,-287.74151009,0.000237,4]
[367177864,1750692768428,-287.74151009,0.000237,4]
[367177865,1750692768495,-287.74151009,0.000237,4]
[367177866,1750692768568,-287.74151009,0.000237,4]
[367177867,1750692768631,-287.74151009,0.000237,4]
[367177868,1750692768696,-287.74,0.000237,4]
[367177869,1750692768764,-671.39685688,0.000237,4]
[367177870,1750692768830,-671.39685688,0.000237,4]
[367177871,1750692768897,-671.39685688,0.000237,4]
[367177872,1750692768963,-671.39685688,0.000237,4]
[367177873,1750692769032,-671.39685688,0.000237,4]
[367177874,1750692769093,-671.39685688,0.000237,4]
[367177875,1750692769160,-671.39685688,0.000237,4]
[367177876,1750692769223,-671.39685688,0.000237,4]
[367177877,1750692769286,-671.39685688,0.000237,4]
[367177878,1750692769356,-671.39685688,0.000237,4]
[367177879,1750692769419,-671.39685688,0.000237,4]
[367177880,1750692769485,-671.39685688,0.000237,4]
[367177881,1750692769548,-671.39685688,0.000237,4]
[367177882,1750692769611,-671.39685688,0.000237,4]
[367177883,1750692769672,-671.39685688,0.000237,4]
[367177884,1750692769737,-671.39685688,0.000237,4]
[367177885,1750692769800,-671.39685688,0.000237,4]
[367177886,1750692769862,-671.39685688,0.000237,4]
[367177887,1750692769923,-577.0630008,0.00023721,4]
[367177888,1750692770346,-671.39685688,0.00023721,4]
[367177889,1750692770405,-988.6726062,0.00023753,3]
[367177890,1750692770462,-213.63163053,0.00023753,3]
[367177891,1750692770528,-425.08510397,0.00023753,3]
[367177892,1750692770584,-160.0,0.00023753,3]
[367177893,1750692770640,-151.0,0.00023779,7]
[367177894,1750692770702,-152.827679,0.00023779,7]
[367177895,1750692770766,-151.0,0.00023779,7]
[367177896,1750692770825,-151.0,0.00023779,7]
[367177897,1750692770884,-151.0,0.00023779,7]
[367177898,1750692770944,-151.0,0.00023779,7]
[367177899,1750692771004,-286124.83339354,0.0002378,7]
[367177900,1750692771062,-846.53928378,0.0002378,7]
[367177901,1750692771122,-213.63163053,0.0002378,7]
[367177902,1750692771180,-151.0,0.0002378,7]
[367177903,1750692771238,-207.692286,0.0002378,7]
[367177904,1750692771301,-151.0,0.0002378,7]
[367177905,1750692771378,-1717.861544,0.0002378,5]
[367177906,1750692771440,-1275.49,0.00023799,3]
[367177907,1750692771496,-160.0,0.00023799,3]
[367177908,1750692771553,-160.0,0.00023799,3]
[367177909,1750692771612,-836.70095952,0.00023799,3]
[367177910,1750692771675,-846.53928378,0.00023799,3]
[367177911,1750692771731,-899.68,0.000238,7]
[367177912,1750692771790,-151.0,0.000238,7]
[367177913,1750692771848,-160.38110243,0.000238,4]
[367177914,1750692771907,-160.38110243,0.000238,4]
[367177915,1750692771967,-151.0,0.000238,7]
[367177916,1750692772030,-2914.03,0.000238,7]
[367177917,1750692772087,-6373.19,0.000238,7]
[367177918,1750692772148,-238045.48832379,0.000238,5]
[367177919,1750692772208,-151.0,0.000238,7]
[367177920,1750692772264,-151.0,0.000238,7]
[367177921,1750692772325,-151.0,0.000238,7]
[367177922,1750692772383,-151.0,0.000238,7]
[367177923,1750692772441,-151.0,0.000238,7]
[367177924,1750692772497,-320.4846,0.000238,7]
[367177925,1750692772555,-320.4846,0.000238,7]
[367177926,1750692772613,-151.0,0.000238,7]
[367177927,1750692772668,-151.0,0.000238,7]
[367177928,1750692772724,-151.0,0.000238,7]
[367177929,1750692772781,-151.0,0.000238,7]
[367177930,1750692772842,-726.461119,0.000238,7]
[367177931,1750692772896,-151.0,0.000238,7]
[367177932,1750692772954,-726.461119,0.000238,7]
[367177933,1750692773010,-151.0,0.000238,7]
[367177934,1750692773066,-1000.0,0.000238,5]
[367177935,1750692773126,-1000.0,0.0002382,5]
[367177936,1750692773182,-577.06,0.0002384,4]
[367177937,1750692773243,-671.39,0.0002384,4]
[367177938,1750692773299,-1000.0,0.0002384,5]
[367177939,1750692773370,-1000.0,0.0002386,5]
[367177940,1750692773433,-160.38,0.0002388,4]
[367177941,1750692773494,-1000.0,0.0002388,5]
[367177942,1750692773554,-1275.49,0.00023899,5]
[367177943,1750692773613,-151.0,0.000239,5]
[367177944,1750692773672,-151.0,0.000239,6]
[367177945,1750692773735,-151.0,0.000239,7]
[367177946,1750692773794,-151.0,0.000239,7]
[367177947,1750692773852,-151.0,0.000239,7]
[367177948,1750692773911,-151.0,0.000239,7]
[367177949,1750692773968,-427.936486,0.000239,7]
[367177950,1750692774026,-151.0,0.000239,7]
[367177951,1750692774083,-427.936486,0.000239,7]
[367177952,1750692774140,-151.0,0.000239,7]
[367177953,1750692774197,-151.0,0.000239,7]
[367177954,1750692774255,-151.0,0.000239,7]
[367177955,1750692774313,-151.0,0.000239,7]
[367177956,1750692774371,-151.0,0.000239,7]
[367177957,1750692774430,-151.0,0.000239,7]
[367177958,1750692774499,-151.0,0.000239,7]
[367177959,1750692774570,-151.0,0.000239,7]
[367177960,1750692774627,-151.0,0.000239,7]
[367177961,1750692774685,-151.0,0.000239,7]
[367177962,1750692774740,-190.453664,0.000239,7]
[367177963,1750692774797,-190.453664,0.000239,7]
[367177964,1750692774852,-151.0,0.000239,7]
[367177965,1750692774909,-151.0,0.000239,7]
[367177966,1750692774968,-153.221812,0.000239,7]